Cogmind - Beta 9.6 @@@ ROGUE MODE // 2020.05.21 @ 20:02:06 Player: Overmind Result: Self-destructed Performance ------------- Evolutions (2) 1000 Regions Visited (3) 600 Robots Destroyed (38) 190 Value Destroyed (1175) 1175 Prototype IDs (0) 0 Alien Tech Used (0) 0 Bonus (0) 0 TOTAL SCORE: 2965 Bonus ------- None Cogmind --------- Core Integrity 374/550 Matter 252/300 Energy 125/125 System Corruption 0% Temperature Cool (9) Movement Core (150) Ox2 Location -8/Materials Parts ------- > --- POWER (2) -------- Light Ion Engine > --- PROPULSION (3) --- (None) > --- UTILITY (4) ------ Advanced Signal Interpreter ECM Suite > --- WEAPON (2) ------- Gauss Rifle > --- INVENTORY (4) ---- High-powered Shotgun Peak State ------------ > --- POWER ------------ Improved Deuterium Engine Improved Deuterium Engine > --- PROPULSION ------- Cesium-ion Thruster Cesium-ion Thruster Cesium-ion Thruster > --- UTILITY ---------- Advanced Signal Interpreter ECM Suite > --- WEAPON ----------- Particle Gun High-powered Shotgun > --- INVENTORY -------- Light Ion Engine Small Laser High-powered Shotgun [Rating: 26] Favorites ----------- Power Light Ion Engine Engine Light Ion Engine Power Core Light Nuclear Core Propulsion Light Treads Treads Light Treads Flight Unit Cesium-ion Thruster Utility Large Storage Unit Device ECM Suite Storage Large Storage Unit Processor Signal Interpreter Weapon Beam Rifle Energy Gun Beam Rifle Ballistic Gun Light Assault Rifle Build | -11 -10 -9 -8 ------- Run | Scr Mat Mat Mat Slots Evolved 4 | . . 2 2 Power 1 | . . . 1 Propulsion 1 | . . 1 . Utility 2 | . . 1 1 Weapon . | . . . . Parts Attached 28 | 3 6 12 7 Power 6 | 1 . 1 4 Engine 5 | 1 . . 4 Core 1 | . . 1 . Reactor . | . . . . Propulsion 8 | 2 . 6 . Treads 5 | 2 . 3 . Leg . | . . . . Wheel . | . . . . Hover . | . . . . Flight 3 | . . 3 . Utility 4 | . 2 2 . Device 1 | . . 1 . Storage 1 | . 1 . . Processor 2 | . 1 1 . Hackware . | . . . . Protection . | . . . . Artifact . | . . . . Weapon 10 | . 4 3 3 Energy Gun 4 | . 1 2 1 Energy Cannon . | . . . . Ballistic Gun 6 | . 3 1 2 Ballistic Cannon . | . . . . Launcher . | . . . . Special Weapon . | . . . . Impact Weapon . | . . . . Slashing Weapon . | . . . . Piercing Weapon . | . . . . Special Melee Weapon . | . . . . Unidentified Prototypes . | . . . . Parts Lost 10 | . 1 3 6 Power 1 | . . . 1 Propulsion 4 | . . 1 3 Utility . | . . . . Weapon 5 | . 1 2 2 Highest Loss Streak 6 | . 1 2 6 Average Slot Usage (%) 92 | . 94 97 60 Engine 10 | . 14 9 8 Treads 26 | . 28 30 . Flight 2 | . . . 21 Device 6 | . . 11 9 Storage 10 | . 13 10 . Processor 10 | . 9 11 9 Energy Gun 12 | . 12 14 6 Ballistic Gun 10 | . 15 6 6 Naked Turns . | . . . . Heaviest Build 27 | 3 24 26 27 Greatest Support 60 | 40 40 60 18 Greatest Overweight (x) 8 | . . 8 2 Average Overweight (x) . | . . . . Largest Inventory Capacity 10 | 4 10 10 4 Average Capacity 9 | 4 9 9 4 Most Carried 8 | 3 6 8 4 Average Carried 3 | 2 3 2 2 Final Capacity 10 | 4 10 4 4 Final Carried 5 | 3 5 3 1 Class Distribution -------------------- 82% | Mutant 17% | Scavenger-Mutant Dominant Class ---------------- Mutant | -10/Materials Mutant | -9/Materials Mutant | -8/Materials Resources | -11 -10 -9 -8 ----------- Run | Scr Mat Mat Mat Matter Collected 605 | 62 355 82 106 Remotely . | . . . . Salvage Created 1505 | . 734 546 225 Parts 91 | . 50 30 11 Haulers Intercepted 3 | . 2 1 . Recyclers Shooed 1 | . . 1 . Parts Field Recycled . | . . . . Retrieved Matter . | . . . . Parts Self-Destructed . | . . . . Prevented . | . . . . Kills | -11 -10 -9 -8 ------- Run | Scr Mat Mat Mat Combat Hostiles Destroyed 32 | . 16 12 4 Guns 32 | . 16 12 4 Classes Destroyed 7 | . 5 1 1 Builder 1 | . 1 . . Hauler 3 | . 2 1 . Watcher 2 | . 1 . 1 Swarmer 3 | . 3 . . Grunt 27 | . 13 11 3 Sentry 1 | . . 1 . Hunter 1 | . . . 1 Best Kill Streak 6 | . 6 3 3 Combat Bots Only 5 | . 5 3 3 Max Kills in Single Turn 2 | . 2 1 1 Gunslinging 1 | . 1 . . Exploded . | . . . . Melee . | . . . . Uniques/NPCs Destroyed . | . . . . Combat | -11 -10 -9 -8 -------- Run | Scr Mat Mat Mat Damage Taken 1621 | . 444 514 663 Core 336 | . 98 62 176 Absorbed by Shields . | . . . . Core Remaining (%) 81 | 100 60 84 . Volleys Fired 104 | . 52 36 16 Largest 2 | . 2 2 2 Hottest 121 | . 76 121 97 Shots Fired 190 | . 103 62 25 Gun 190 | . 103 62 25 Cannon . | . . . . Launcher . | . . . . Special . | . . . . Kinetic 94 | . 60 18 16 Thermal 96 | . 43 44 9 Explosive . | . . . . Electromagnetic . | . . . . Robot Hit Streak 19 | . 19 12 8 Robot Miss Streak 4 | . 2 2 4 Penetration Max . | . . . . Secondary Targets 6 | . 3 2 1 Max Gunslinging Chain 1 | . 1 1 1 Shots Hit Robots 138 | . 75 45 18 Core Hits 62 | . 32 18 12 Critical Hits 2 | . 1 . 1 Critical Kills 1 | . . . 1 Critical Parts Destroyed 1 | . 1 . . Melee Attacks . | . . . . Impact . | . . . . Slashing . | . . . . Piercing . | . . . . Sneak Attacks . | . . . . Combat Hostiles . | . . . . Follow-up Attacks . | . . . . Damage Inflicted 1990 | . 942 618 430 Guns 1990 | . 942 618 430 Cannons . | . . . . Explosions . | . . . . Melee . | . . . . Ramming . | . . . . Kinetic 816 | . 444 94 278 Thermal 1174 | . 498 524 152 Explosive . | . . . . Electromagnetic . | . . . . Impact . | . . . . Slashing . | . . . . Piercing . | . . . . Highest Corruption . | . . . . Average Corruption . | . . . . Corruption Purged . | . . . . Overload Shots . | . . . . Overflow Damage . | . . . . Projectiles . | . . . . Explosions . | . . . . Melee . | . . . . Knockbacks . | . . . . Impact . | . . . . Kinetic . | . . . . Secondary . | . . . . Self-Inflicted Damage . | . . . . Shots . | . . . . Rammed . | . . . . Targets Rammed . | . . . . Kicked . | . . . . Crushed . | . . . . Highest Temperature 271 | . 225 228 271 Average Temperature 80 | . 67 78 127 Received Heat Transfer 759 | . 234 264 261 Siege Activations . | . . . . Robots Corrupted . | . . . . Combat Hostiles . | . . . . Parts Fried . | . . . . Impact Corruptions . | . . . . Robots Melted . | . . . . Combat Hostiles . | . . . . Parts Melted 4 | . 2 2 . Heat Transferred 2837 | . 1258 1283 296 Parts Sabotaged . | . . . . Parts Stolen . | . . . . Parts Stripped . | . . . . Power Chain Reactions . | . . . . Missiles Intercepted . | . . . . Alert | -11 -10 -9 -8 ------- Run | Scr Mat Mat Mat Peak Influence 302 | . 302 222 115 Average Influence 141 | . 186 128 71 Maximum Alert Level 1 | . 1 1 . Low Security (%) 80 | 100 56 95 100 Level 1 19 | . 43 4 . Level 2 . | . . . . Level 3 . | . . . . Level 4 . | . . . . Level 5 . | . . . . High Security . | . . . . Max Security . | . . . . Squads Dispatched 6 | . 3 2 1 Investigation 4 | . 2 2 . Extermination . | . . . . Reinforcement 2 | . 1 . 1 Assault . | . . . . Garrison . | . . . . Intercept . | . . . . Construction Impeded . | . . . . Haulers Reinforced . | . . . . Stealth | -11 -10 -9 -8 --------- Run | Scr Mat Mat Mat Distress Signals 3 | . 2 . 1 Communications Jammed . | . . . . Distress Signals . | . . . . Times Spotted 59 | . 26 24 9 Peak Tracking Total 6 | . 6 3 4 Tactical Retreats 8 | . 2 6 . Traps | -11 -10 -9 -8 ------- Run | Scr Mat Mat Mat Traps Triggered 3 | . 1 2 . Indirectly . | . . . . Trap Hack Attempts . | . . . . Triggered . | . . . . Disarmed . | . . . . Reprogrammed . | . . . . Reused . | . . . . Traps Extracted . | . . . . Installed . | . . . . Triggered . | . . . . Machines | -11 -10 -9 -8 ---------- Run | Scr Mat Mat Mat Machines Disabled 1 | . . 1 . Max in Single Turn 1 | . . 1 . Machines Sabotaged . | . . . . Garrisons Compromised . | . . . . Overloaded Fab Kills . | . . . . Fab Network Shutdowns . | . . . . Hacking | -11 -10 -9 -8 --------- Run | Scr Mat Mat Mat Machines Accessed 7 | . 4 2 1 Terminals 7 | . 4 2 1 Fabricators . | . . . . Repair Stations . | . . . . Recycling Units . | . . . . Scanalyzers . | . . . . Garrison Access . | . . . . Total Hacks 16 | . 8 6 2 Successful 5 | . 2 3 . Failed 11 | . 6 3 2 Catastrophic 2 | . 1 . 1 Database Lockouts . | . . . . Manual 9 | . 5 2 2 Terminals 16 | . 8 6 2 Fabricators . | . . . . Repair Stations . | . . . . Recycling Units . | . . . . Scanalyzers . | . . . . Garrison Access . | . . . . Terminal Hacks 5 | . 2 3 . Part Schematic 3 | . 2 1 . Robot Analysis 1 | . . 1 . Alert Level 1 | . . 1 . Fabricator Hacks . | . . . . Repair Station Hacks . | . . . . Recycling Unit Hacks . | . . . . Scanalyzer . | . . . . Garrison Access Hacks . | . . . . Unauthorized Hacks . | . . . . Terminals . | . . . . Fabricators . | . . . . Repair Stations . | . . . . Recycling Units . | . . . . Scanalyzers . | . . . . Garrison Access . | . . . . Data Cores Recovered . | . . . . Used . | . . . . Hacking Detections 5 | . 3 1 1 Full Trace Events 2 | . 1 1 . Feedback Events . | . . . . Feedback Blocked . | . . . . Robot Schematics Acquired . | . . . . Robots Built . | . . . . Matter . | . . . . Time . | . . . . Total Robot Build Rating . | . . . . Part Schematics Acquired 2 | . 2 . . Parts Built . | . . . . Matter . | . . . . Time . | . . . . Total Part Build Rating . | . . . . Parts Repaired . | . . . . Time . | . . . . Parts Recycled . | . . . . Recycled Matter . | . . . . Retrieved Matter . | . . . . Retrieved Components . | . . . . Parts Scanalyzed . | . . . . Part Schematics Acquired . | . . . . Parts Damaged . | . . . . Bothacking | -11 -10 -9 -8 ------------ Run | Scr Mat Mat Mat Used RIF Installer . | . . . . Robots Hacked . | . . . . Non-combat . | . . . . Combat . | . . . . Robot Hacks Applied . | . . . . Relay Couplers Released . | . . . . Robots Rewired . | . . . . Allies Hacked . | . . . . Hacks Repelled . | . . . . Allies | -11 -10 -9 -8 -------- Run | Scr Mat Mat Mat Total Allies . | . . . . Largest Group . | . . . . Highest-Rated Group . | . . . . Highest-Rated Ally . | . . . . Total Orders . | . . . . Ally Attacks . | . . . . Total Damage . | . . . . Kills . | . . . . Allies Corrupted . | . . . . Allies Melted . | . . . . Intel | -11 -10 -9 -8 ------- Run | Scr Mat Mat Mat Robot Analysis Total 1 | . . 1 . Derelict Logs Recovered . | . . . . Drone Launches . | . . . . Drone Recoveries . | . . . . Exploration | -11 -10 -9 -8 ------------- Run | Scr Mat Mat Mat Turns Passed 2010 | 62 790 951 207 Spaces Moved 1150 | 44 388 453 265 Core 25 | 15 . 7 3 Treads 830 | 29 388 413 . Legs . | . . . . Wheels . | . . . . Hover . | . . . . Flight 295 | . . 33 262 Fastest Speed 34 | 50 160 34 34 Average Speed 129 | 122 160 155 43 Slowest Speed 450 | 160 160 450 200 Overloaded Moves . | . . . . Propulsion Burnouts . | . . . . Robots Hopped 1 | . . . 1 Cave-ins Triggered . | . . . . Exploration Rate (%) 20 | 3 34 31 15 Regions Visited 3 Branch Regions . Pre-discovered Areas . | . . . . Known Exits Taken 2 | . 1 1 . Unknown Exits Taken 1 | 1 . . . Scrap Searched . | . . . . Spaces Dug . | . . . . Terrain Destroyed 1 | . . . 1 Melee . | . . . . Projectile 1 | . . . 1 AOE . | . . . . Actions | -11 -10 -9 -8 --------- Run | Scr Mat Mat Mat Total 1494 | 52 460 648 334 Wait 167 | . 7 123 37 Move 1145 | 43 387 452 263 Hop 1 | . . . 1 Pick Up 28 | 6 7 11 4 Fast Attach . | . . . . Attach 28 | 3 6 12 7 Detach 10 | . 1 7 2 Swap . | . . . . Drop 11 | . . 7 4 Fire 104 | . 52 36 16 Melee . | . . . . Ram . | . . . . Kick . | . . . . Crush . | . . . . Escape Stasis . | . . . . Rewire . | . . . . Trap . | . . . . Miscellaneous . | . . . . Route ------- -11/Scrapyard -10/Materials -9/Materials -8/Materials (discovered 1 exit: [*Fac]) History --------- Turn | Location | Event 9 | -11/Scrapyard | Discovered new exit (range 16) 63 | -11/Scrapyard | Entered Materials 301 | -10/Materials | Build established: Mutant 718 | -10/Materials | Discovered new exit (range 16) 852 | -10/Materials | Identified exit to Materials 853 | -10/Materials | Entered another Materials area 853 | -9/Materials | Evolved 2 slots: Propulsion x1, Utility x1 1703 | -9/Materials | Discovered new exit (range 15) 1704 | -9/Materials | Build established: Scavenger-Mutant 1741 | -9/Materials | Identified exit to Materials 1804 | -9/Materials | Entered another Materials area 1804 | -8/Materials | Evolved 2 slots: Power x1, Utility x1 2007 | -8/Materials | Discovered new exit (range 16) 2011 | -8/Materials | Self-destructed Last Messages --------------- 01974_ Slug penetrates Wall. 01975_ K-01 Serf collects debris. 01975_ R-06 Scavenger collects Lgt. Nuclear Core. 01976_ Slug penetrates G-47 Trooper. 01978_ K-01 Serf collects debris. 01978_ Slug penetrates G-47 Trooper. 01978_ G-47 Trooper suffers critical hit. 01978_ G-47 Trooper destroyed. 01981_ K-01 Serf collects debris. 01983_ Imp. Deuterium Engine destroyed. 01984_ Slug penetrates G-47 Trooper. 01984_ G-47 Trooper destroyed. 01989_ Acquired 51 matter. 02000_ O-24 Administrator: "IFF HANDSHAKE FAILED. SECURING TERMINAL." 02003_ Penetrated by Slug. 02006_ Cesium-ion Thruster destroyed. 02006_ ALERT: Hostiles spotted, dispatching reinforcements to Terminal M010. 02007_ EXIT=FOUND 02009_ Penetrated by Slug. Map ----- +----------------------------------------------------+ | #??????????????????????????????? | | #??????????????????????????????? | | #??????????????????????????????? | | +############## #??????????????????????????????? | | !# # #??????????????????????????????? | | # """ # #??????????????????????????????? | | "" #! """ + ########???????????????????????? | | """ ]# """ # % #?????#?????????????????? | | """ # # !![ #???? #?????????????????? | | """ # """ # % ! #??? #?????????????????? | | "" !# """ ########% =#??? #?????????????????? | | # """ #??????# #?? #?????????????????? | | ######## #??????# #?? #?????????????????? | | ???????# [#??????# ### ####+###??????????? | | ???????# "T" #??????# ?????????? | | ???????# """ #??????# ?????????? | | ???????# #??????# ?????????? | | ???????########??????### ######## #??????????? | | ???????????????????????# #?????????????????????? | | ???????????????????????# #?????????????????????? | | ???????????????????????# #?????????????????????? | | ???????????????????????# #?????????????????????? | | ???????????????????????# #?????????????????????? | | ???????????????????????# #?????????????????????? | | ???????????????????????# #?????????????????????? | | ???????????????????????# @ #?????????????????????? | | ???????????????????????#h #?????????????????????? | | ?????????????????????? #?????????????????????? | | ?????????????????????g #?????????????????????? | | ???????????????????? #?????????????????????? | | ?????????????????? a +?????????????????????? | | ????????????????? g #?????????????????????? | | ????????????????" " " #?????????????????????? | | ???????????????##a "G" #?????????????????????? | | ???????????????? """ ! ?????????????????????? | | ??????????????? ? ?????????????????????? | | ?????????????? ???? ?????????????????????? | | ????????????????????#### ##????????????????????? | | ???????????????????????? #?????????????????????? | | ???????????????????????? < #?????????????????????? | | ???????????????????????? ??????????????????????? | | ?????????????????????????????????????????????????? | | ?????????????????????????????????????????????????? | | ?????????????????????????????????????????????????? | | ?????????????????????????????????????????????????? | | ?????????????????????????????????????????????????? | | ?????????????????????????????????????????????????? | | ?????????????????????????????????????????????????? | | ?????????????????????????????????????????????????? | | ?????????????????????????????????????????????????? | +----------------------------------------------------+ Best States ------------- Heat Dissipation 31 Energy Generation 16 Energy Capacity 290 Matter Stores 300 Matter Capacity 300 Sight Range 16 Terrain Scan Density 10 ECM Strength 1 Evasion (%) 63 Recoil Reduction 3 Item Schematics ----------------- Datajack | -10/Materials | Hacked Propulsion Shielding | -10/Materials | Hacked Robot Schematics ------------------ None Fabricated ------------ Nothing Alien Tech Used ----------------- None Achievements -------------- None Challenges ------------ None Game ------ Seed TerrabombSigixApparatus Manual? 0 Play Time 00:21:40 Cumulative 11.0 hours Start 2020.05.21 @ 19:39:58 End 2020.05.21 @ 20:02:06 Sessions 1 Manual Loads 0 Difficulty Rogue Special Mode None Game No. 24 Rogue 8 Adventurer 16 Explorer 0 Win Type - Total 0 Types 0/0/0/0/0/0/0 Lore% 7 Gallery% 17 Achievement% 14 Wizard Run 0 Options --------- ASCII 0 Keyboard 1 Movement Arrows Keybinds 0 Fullscreen 2 Font 18/CogNarrow Map View 76x50 Tactical HUD 1 Map Filters NONE Filters NONE Steam 0 RUN: c6c25391-44b8-4423-a05f-685bc813b745